Cogmind - Beta 10.2 @@@ ROGUE MODE // 2021.04.09 @ 11:08:25 Player: CrossedViper Result: Destroyed by B-75 Beast with Heavy Plasma Cannon Performance ------------- Evolutions (3) 1500 Regions Visited (10) 2000 Robots Destroyed (77) 385 Value Destroyed (2778) 2778 Prototype IDs (221) 4420 Alien Tech Used (0) 0 Bonus (3523) 3523 TOTAL SCORE: 14606 Bonus ------- High Alert Combat Kills 64 Follower Combat Kills 159 Met Data Miner 300 Used Data Conduit 3000 Cogmind --------- Core Integrity 0/700 Matter 146/300 Energy 100/100 System Corruption 2% Temperature Cool (12) Movement Core (50) Location -6/Proximity Caves Parts ------- > --- POWER (1) -------- (None) > --- PROPULSION (2) --- Spiked Medium Treads > --- UTILITY (7) ------ Target Analyzer > --- WEAPON (3) ------- (None) > --- INVENTORY (4) ---- Humpback Coil Gun Peak State ------------ > --- POWER ------------ Improved Deuterium Engine > --- PROPULSION ------- Compact Wheel Compact Wheel > --- UTILITY ---------- Coolant Injector High-capacity Storage Unit High-capacity Storage Unit Target Analyzer Improved Core Shielding Improved Medium Armor Plating > --- WEAPON ----------- Enhanced Autogun Gauss Rifle Flak Gun > --- INVENTORY -------- Medium Treads Gravmag System Improved Heat Sink Improved Heat Sink Humpback Improved Terrain Scanner Advanced Terrain Scanner Energy Filter Improved Core Shielding Improved Weapon Shielding Beam Rifle Makeshift Laser Flak Gun Coil Gun Coil Gun Improved Grenade Launcher Missile Launcher Missile Launcher Datajack [Rating: 42] Favorites ----------- Power Improved Deuterium Engine Engine Improved Deuterium Engine Power Core Micro Nuclear Core Propulsion Light Treads Treads Light Treads Leg Carbon-fiber Leg Wheel Compact Wheel Flight Unit Nuclear Pulse Thruster Utility High-capacity Storage Unit Device Improved Heat Sink Storage High-capacity Storage Unit Processor Target Analyzer Protection Improved Weapon Shielding Weapon Spread Laser Energy Gun Spread Laser Energy Cannon Heavy Ion Cannon Ballistic Gun Enhanced Autogun Launcher Missile Launcher Special Weapon Enhanced Flamer Impact Weapon Hammer Special Melee Weapon Datajack Build | -11 -10 -10 -10 -9 -8 -7 -7 -7 -7 -6 ------- Run | Scr Mat Min Exi Min Mat Fac Low Low Dat Pro Slots Evolved 6 | . . . . . 4 2 . . . . Power . | . . . . . . . . . . . Propulsion . | . . . . . . . . . . . Utility 5 | . . . . . 3 2 . . . . Weapon 1 | . . . . . 1 . . . . . Parts Attached 89 | 3 5 . 1 2 17 28 11 6 10 6 Power 8 | 1 . . . 1 2 2 1 . . 1 Engine 7 | 1 . . . 1 2 1 1 . . 1 Core 1 | . . . . . . 1 . . . . Reactor . | . . . . . . . . . . . Propulsion 20 | 2 . . . . 4 5 2 2 1 4 Treads 12 | 2 . . . . 3 2 2 . 1 2 Leg 1 | . . . . . 1 . . . . . Wheel 5 | . . . . . . 3 . 2 . . Hover . | . . . . . . . . . . . Flight 2 | . . . . . . . . . . 2 Utility 27 | . 1 . 1 . 5 11 4 2 3 . Device 12 | . . . . . 1 5 3 1 2 . Storage 7 | . 1 . 1 . 3 2 . . . . Processor 2 | . . . . . 1 1 . . . . Hackware . | . . . . . . . . . . . Protection 6 | . . . . . . 3 1 1 1 . Artifact . | . . . . . . . . . . . Weapon 34 | . 4 . . 1 6 10 4 2 6 1 Energy Gun 9 | . 3 . . 1 4 1 . . . . Energy Cannon 5 | . . . . . . 5 . . . . Ballistic Gun 10 | . 1 . . . . 3 1 2 2 1 Ballistic Cannon . | . . . . . . . . . . . Launcher 7 | . . . . . . 1 3 . 3 . Special Weapon 1 | . . . . . 1 . . . . . Impact Weapon 1 | . . . . . 1 . . . . . Slashing Weapon . | . . . . . . . . . . . Piercing Weapon . | . . . . . . . . . . . Special Melee Weapon 1 | . . . . . . . . . 1 . Unidentified Prototypes 1 | . . . . . . 1 . . . . Parts Lost 51 | . . . . 1 14 10 5 4 13 4 Power 6 | . . . . . 1 2 1 . 1 1 Propulsion 15 | . . . . . 5 2 2 1 3 2 Utility 12 | . . . . . 1 3 2 2 3 1 Weapon 18 | . . . . 1 7 3 . 1 6 . Highest Loss Streak 13 | . . . . 1 5 4 4 4 13 3 Average Slot Usage (%) 79 | . 65 85 85 83 58 78 93 87 81 28 Engine 7 | . 14 14 14 14 7 1 5 7 5 3 Treads 14 | . 28 28 28 28 13 6 13 4 . 1 Wheel 3 | . . . . . . 6 1 10 12 . Device 8 | . . . . . 3 16 13 9 9 . Storage 13 | . 6 14 14 14 10 14 15 15 13 . Processor 3 | . . . . . 4 . 7 7 7 7 Protection 5 | . . . . . . 4 10 11 13 7 Energy Gun 8 | . 14 28 28 26 13 2 . . . . Energy Cannon 2 | . . . . . . 11 . . . . Ballistic Gun 6 | . 1 . . . . 5 11 15 15 . Launcher 3 | . . . . . . 1 10 4 1 . Naked Turns 1 | . . . . . . 1 . . . . Heaviest Build 102 | 3 13 13 89 96 100 101 100 102 100 12 Greatest Support 40 | 3 40 40 40 40 40 32 40 40 32 14 Greatest Overweight (x) 11 | . . . 2 4 11 6 5 2 3 . Average Overweight (x) 2 | . . . 1 3 2 4 2 2 1 . Largest Inventory Capacity 40 | 4 6 6 24 24 40 20 20 20 20 4 Average Capacity 18 | 4 5 6 19 24 20 19 20 20 17 4 Most Carried 20 | 4 5 5 13 15 16 14 18 20 20 4 Average Carried 11 | 2 4 5 9 14 11 7 14 18 17 3 Final Capacity 24 | 4 6 6 24 24 4 20 20 20 4 4 Final Carried 20 | 4 5 5 13 15 4 14 18 20 4 3 Class Distribution -------------------- 47% | Hauler-Mutant 17% | Mutant 10% | Scavenger-Mutant 8% | Hauler-Tank 5% | Scavenger-Gunner 5% | Hauler-Gunner Dominant Class ---------------- Mutant | -10/Materials Mutant | -10/Mines Hauler-Mutant | -10/Exiles Hauler-Mutant | -9/Mines Hauler-Mutant | -8/Materials Hauler-Gunner | -7/Factory Hauler-Mutant | -7/Lower Caves Hauler-Mutant | -7/Lower Caves Hauler-Tank | -7/Data Miner Mutant | -6/Proximity Caves Resources | -11 -10 -10 -10 -9 -8 -7 -7 -7 -7 -6 ----------- Run | Scr Mat Min Exi Min Mat Fac Low Low Dat Pro Matter Collected 1554 | 218 32 11 27 20 221 444 468 33 . 80 Remotely . | . . . . . . . . . . . Salvage Created 2443 | . 30 15 . 145 184 1132 654 258 . 25 Parts 104 | . 3 4 . 12 5 50 21 8 . 1 Haulers Intercepted . | . . . . . . . . . . . Recyclers Shooed 2 | . 1 . . . . 1 . . . . Parts Field Recycled . | . . . . . . . . . . . Retrieved Matter . | . . . . . . . . . . . Parts Self-Destructed 12 | . . . . . . . 10 2 . . Prevented . | . . . . . . . . . . . Kills | -11 -10 -10 -10 -9 -8 -7 -7 -7 -7 -6 ------- Run | Scr Mat Min Exi Min Mat Fac Low Low Dat Pro Combat Hostiles Destroyed 67 | . 2 3 . 9 6 17 18 12 . . Guns 32 | . 2 3 . 9 3 9 4 2 . . Cannons 8 | . . . . . 1 7 . . . . AOE 25 | . . . . . . 1 14 10 . . Classes Destroyed 12 | . 1 . . 2 . 9 . . . . Worker 4 | . . . . . . 4 . . . . Builder 1 | . . . . . . 1 . . . . Tunneler 1 | . . . . . . 1 . . . . Recycler 3 | . . . . . . 3 . . . . Operator 1 | . . . . . . 1 . . . . Swarmer 17 | . 2 3 . 7 . 1 1 3 . . Grunt 25 | . . . . 1 5 7 10 2 . . Brawler 10 | . . . . 1 1 1 4 3 . . Duelist 5 | . . . . . . 1 1 3 . . Sentry 6 | . . . . . . 3 2 1 . . Hunter 1 | . . . . . . 1 . . . . Programmer 3 | . . . . . . 3 . . . . Best Kill Streak 12 | . 2 3 . 4 3 4 5 12 . . Combat Bots Only 12 | . 2 3 . 4 3 3 5 12 . . Max Kills in Single Turn 3 | . 1 1 . 1 1 3 3 3 . . Gunslinging . | . . . . . . . . . . . Exploded 3 | . . . . . . 1 3 3 . . Melee . | . . . . . . . . . . . Uniques/NPCs Destroyed . | . . . . . . . . . . . Combat | -11 -10 -10 -10 -9 -8 -7 -7 -7 -7 -6 -------- Run | Scr Mat Min Exi Min Mat Fac Low Low Dat Pro Damage Taken 6550 | . 49 104 . 235 1932 1506 470 672 1487 95 Core 1226 | . . . . 37 466 200 71 27 400 25 Absorbed by Shields . | . . . . . . . . . . . Core Remaining (%) 66 | 100 . . . 85 15 . . . . . Volleys Fired 163 | . 6 7 . 21 32 59 24 12 1 1 Largest 3 | . 2 2 . 2 3 3 3 2 2 1 Hottest 195 | . 60 130 . 130 195 195 81 72 72 30 Shots Fired 322 | . 12 14 . 30 47 146 46 24 2 1 Gun 206 | . 12 14 . 30 35 76 24 14 . 1 Cannon 67 | . . . . . . 67 . . . . Launcher 37 | . . . . . . 3 22 10 2 . Special 12 | . . . . . 12 . . . . . Kinetic 92 | . 6 . . . . 47 24 14 . 1 Thermal 187 | . . 14 . 30 47 96 . . . . Explosive 37 | . . . . . . 3 22 10 2 . Electromagnetic 6 | . 6 . . . . . . . . . Robot Hit Streak 20 | . 3 8 . 12 12 20 10 5 3 4 Robot Miss Streak 13 | . 2 13 . 9 6 3 3 2 . . Penetration Max 1 | . . . . . . 1 . . . . Secondary Targets 2 | . . . . . . . 1 1 . . Max Gunslinging Chain 1 | . . . . . . . 1 1 . . Shots Hit Robots 278 | . 7 12 . 28 68 109 35 15 3 1 Core Hits 212 | . 4 9 . 26 31 50 51 37 3 1 Critical Hits . | . . . . . . . . . . . Critical Kills . | . . . . . . . . . . . Critical Parts Destroyed . | . . . . . . . . . . . Melee Attacks 40 | . . . . . 39 . . . 1 . Impact 39 | . . . . . 39 . . . . . Slashing . | . . . . . . . . . . . Piercing . | . . . . . . . . . . . Sneak Attacks 2 | . . . . . 1 . . . 1 . Combat Hostiles . | . . . . . . . . . . . Follow-up Attacks . | . . . . . . . . . . . Damage Inflicted 8179 | . 68 106 . 237 1053 2836 1980 1604 268 27 Guns 2587 | . 68 101 . 237 413 1224 359 158 . 27 Cannons 1195 | . . . . . . 1195 . . . . Explosions 3748 | . . . . . . 417 1621 1446 264 . Melee 479 | . . . . . 479 . . . . . Ramming 48 | . . 5 . . 39 . . . 4 . Kinetic 1221 | . 46 . . . . 631 359 158 . 27 Thermal 2661 | . . 101 . 237 535 1788 . . . . Explosive 3748 | . . . . . . 417 1621 1446 264 . Electromagnetic 22 | . 22 . . . . . . . . . Impact 479 | . . . . . 479 . . . . . Slashing . | . . . . . . . . . . . Piercing . | . . . . . . . . . . . Highest Corruption 3 | . . . . . 3 2 2 2 2 2 Average Corruption 1 | . . . . . 3 1 2 2 2 2 Corruption Purged . | . . . . . . . . . . . Effects 32 | . . . . . 8 4 9 6 2 3 Message Errors 19 | . . . . . 3 2 6 4 1 3 Matter Fused 1 | . . . . . 1 . . . . . Heat Flow Errors 2 | . . . . . 1 . 1 . . . Energy Discharges 3 | . . . . . . . 1 2 . . Data Loss (minor) 2 | . . . . . . 1 . . 1 . Targeting Errors 5 | . . . . . 3 1 1 . . . Overload Shots . | . . . . . . . . . . . Overflow Damage 100 | . . . . . 16 54 2 28 . . Projectiles 36 | . . . . . . 36 . . . . Explosions 48 | . . . . . . 18 2 28 . . Melee 16 | . . . . . 16 . . . . . Knockbacks 2 | . . . . . 2 . . . . . Impact 2 | . . . . . 2 . . . . . Kinetic . | . . . . . . . . . . . Secondary . | . . . . . . . . . . . Self-Inflicted Damage 170 | . . . . . 6 45 . 117 2 . Shots 5 | . . . . . . 2 . 3 . . Rammed 6 | . . 2 . . 3 . . . 1 . Targets Rammed 6 | . . 2 . . 3 . . . 1 . Kicked . | . . . . . . . . . . . Crushed . | . . . . . . . . . . . Highest Temperature 385 | . 40 369 . 385 370 212 246 49 5 . Average Temperature 126 | . 24 195 . 173 142 72 71 25 4 . Received Heat Transfer 1719 | . . . . . 954 312 138 99 192 24 Effects 6 | . . 1 . 4 1 . . . . . Energy Bleed 2 | . . . . 1 1 . . . . . Interference 2 | . . 1 . 1 . . . . . . Short Circuit 1 | . . . . 1 . . . . . . Damage (minor) 1 | . . . . 1 . . . . . . Siege Activations . | . . . . . . . . . . . Robots Corrupted . | . . . . . . . . . . . Combat Hostiles . | . . . . . . . . . . . Parts Fried 1 | . . . . . 1 . . . . . Impact Corruptions 2 | . . . . . 2 . . . . . Robots Melted 1 | . . . . . 1 . . . . . Combat Hostiles 1 | . . . . . 1 . . . . . Parts Melted 3 | . . . . . . 3 . . . . Heat Transferred 4879 | . . 125 . 290 1548 2916 . . . . Parts Sabotaged . | . . . . . . . . . . . Parts Stolen . | . . . . . . . . . . . Parts Stripped . | . . . . . . . . . . . Power Chain Reactions . | . . . . . . . . . . . Missiles Intercepted . | . . . . . . . . . . . Alert | -11 -10 -10 -10 -9 -8 -7 -7 -7 -7 -6 ------- Run | Scr Mat Min Exi Min Mat Fac Low Low Dat Pro Peak Influence 530 | . 63 94 . 260 389 530 . . . . Initial 101 | . . 24 . . 101 99 . . . . Average 206 | . 40 53 . 162 233 274 . . . . Maximum Alert Level 2 | . . . . 1 2 2 . . . . Low Security (%) 49 | 100 100 100 . 77 34 27 . . . . Level 1 44 | . . . . 22 65 57 . . . . Level 2 5 | . . . . . . 14 . . . . Level 3 . | . . . . . . . . . . . Level 4 . | . . . . . . . . . . . Level 5 . | . . . . . . . . . . . High Security . | . . . . . . . . . . . Max Security . | . . . . . . . . . . . Squads Dispatched 7 | . . . . . 1 5 . 1 . . Investigation 2 | . . . . . 1 1 . . . . Extermination 1 | . . . . . . 1 . . . . Reinforcement 3 | . . . . . . 3 . . . . Assault 1 | . . . . . . . . 1 . . Garrison . | . . . . . . . . . . . Intercept . | . . . . . . . . . . . Construction Impeded 1 | . . . . . . 1 . . . . Haulers Reinforced 1 | . . . . . . 1 . . . . Stealth | -11 -10 -10 -10 -9 -8 -7 -7 -7 -7 -6 --------- Run | Scr Mat Min Exi Min Mat Fac Low Low Dat Pro Distress Signals 4 | . . . . . 3 1 . . . . Communications Jammed . | . . . . . . . . . . . Distress Signals . | . . . . . . . . . . . Times Spotted 106 | . 4 3 . 9 26 30 16 13 4 1 Peak Tracking Total 10 | . 2 3 . 4 6 5 5 10 4 1 Tactical Retreats 9 | . . . . 1 5 1 . 2 . . Traps | -11 -10 -10 -10 -9 -8 -7 -7 -7 -7 -6 ------- Run | Scr Mat Min Exi Min Mat Fac Low Low Dat Pro Traps Triggered 2 | . . . . . . 2 . . . . Indirectly . | . . . . . . . . . . . Trap Hack Attempts . | . . . . . . . . . . . Triggered . | . . . . . . . . . . . Disarmed . | . . . . . . . . . . . Reprogrammed . | . . . . . . . . . . . Reused . | . . . . . . . . . . . Traps Extracted . | . . . . . . . . . . . Installed . | . . . . . . . . . . . Triggered . | . . . . . . . . . . . Machines | -11 -10 -10 -10 -9 -8 -7 -7 -7 -7 -6 ---------- Run | Scr Mat Min Exi Min Mat Fac Low Low Dat Pro Machines Disabled 5 | . . . . . . 2 1 2 . . Max in Single Turn 2 | . . . . . . 2 1 1 . . Machines Sabotaged . | . . . . . . . . . . . Garrisons Compromised . | . . . . . . . . . . . Overloaded Fab Kills . | . . . . . . . . . . . Fab Network Shutdowns . | . . . . . . . . . . . Hacking | -11 -10 -10 -10 -9 -8 -7 -7 -7 -7 -6 --------- Run | Scr Mat Min Exi Min Mat Fac Low Low Dat Pro Machines Accessed 12 | . 2 . 1 . 1 3 . 1 4 . Terminals 4 | . 2 . . . . 2 . . . . Fabricators 1 | . . . . . . 1 . . . . Repair Stations . | . . . . . . . . . . . Recycling Units . | . . . . . . . . . . . Scanalyzers 1 | . . . . . 1 . . . . . Garrison Access . | . . . . . . . . . . . Total Hacks 48 | . 7 . 1 . 4 9 . 1 26 . Successful 39 | . 3 . 1 . 4 4 . 1 26 . Failed 8 | . 3 . . . . 5 . . . . Catastrophic 2 | . . . . . . 2 . . . . Database Lockouts 1 | . 1 . . . . . . . . . Manual 6 | . 4 . . . . 2 . . . . Terminals 14 | . 7 . . . . 7 . . . . Fabricators 2 | . . . . . . 2 . . . . Repair Stations . | . . . . . . . . . . . Recycling Units . | . . . . . . . . . . . Scanalyzers 4 | . . . . . 4 . . . . . Garrison Access . | . . . . . . . . . . . Terminal Hacks 33 | . 3 . 1 . . 2 . 1 26 . Record 12 | . . . 1 . . . . . 11 . Part Schematic 7 | . . . . . . . . . 7 . Robot Schematic 5 | . . . . . . . . . 5 . Robot Analysis 1 | . 1 . . . . . . . . . Prototype ID Bank 4 | . 1 . . . . . . . 3 . Open Door 1 | . . . . . . . . 1 . . Branch Access Points 2 | . 1 . . . . 1 . . . . Zone Layout 1 | . . . . . . 1 . . . . Fabricator Hacks 1 | . . . . . . 1 . . . . Load Schematic 1 | . . . . . . 1 . . . . Repair Station Hacks . | . . . . . . . . . . . Recycling Unit Hacks . | . . . . . . . . . . . Scanalyzer 4 | . . . . . 4 . . . . . Insert Component 2 | . . . . . 2 . . . . . Analyze 2 | . . . . . 2 . . . . . Garrison Access Hacks . | . . . . . . . . . . . Unauthorized Hacks 1 | . . . . . . 1 . . . . Terminals 1 | . . . . . . 1 . . . . Botnet 1 | . . . . . . 1 . . . . Fabricators . | . . . . . . . . . . . Repair Stations . | . . . . . . . . . . . Recycling Units . | . . . . . . . . . . . Scanalyzers . | . . . . . . . . . . . Garrison Access . | . . . . . . . . . . . Data Cores Recovered . | . . . . . . . . . . . Used . | . . . . . . . . . . . Hacking Detections 6 | . 2 . . . 1 3 . . . . Full Trace Events 2 | . . . . . 1 1 . . . . Feedback Events . | . . . . . . . . . . . Feedback Blocked . | . . . . . . . . . . . Robot Schematics Acquired 5 | . . . . . . . . . 5 . Robots Built . | . . . . . . . . . . . Matter . | . . . . . . . . . . . Time . | . . . . . . . . . . . Total Robot Build Rating . | . . . . . . . . . . . Part Schematics Acquired 9 | . . . . . 2 . . . 7 . Parts Built . | . . . . . . . . . . . Matter . | . . . . . . . . . . . Time . | . . . . . . . . . . . Total Part Build Rating . | . . . . . . . . . . . Parts Repaired . | . . . . . . . . . . . Time . | . . . . . . . . . . . Parts Recycled . | . . . . . . . . . . . Recycled Matter . | . . . . . . . . . . . Retrieved Matter . | . . . . . . . . . . . Retrieved Components . | . . . . . . . . . . . Parts Scanalyzed 2 | . . . . . 2 . . . . . Part Schematics Acquired 2 | . . . . . 2 . . . . . Parts Damaged . | . . . . . . . . . . . Bothacking | -11 -10 -10 -10 -9 -8 -7 -7 -7 -7 -6 ------------ Run | Scr Mat Min Exi Min Mat Fac Low Low Dat Pro Used RIF Installer . | . . . . . . . . . . . Robots Hacked 1 | . . . . . . . . . 1 . Non-combat . | . . . . . . . . . . . Combat 1 | . . . . . . . . . 1 . Robot Hacks Applied 1 | . . . . . . . . . 1 . parse_system 1 | . . . . . . . . . 1 . Relay Couplers Released . | . . . . . . . . . . . Robots Rewired . | . . . . . . . . . . . Allies Hacked . | . . . . . . . . . . . Hacks Repelled . | . . . . . . . . . . . Allies | -11 -10 -10 -10 -9 -8 -7 -7 -7 -7 -6 -------- Run | Scr Mat Min Exi Min Mat Fac Low Low Dat Pro Total Allies 3 | . . . . 3 . . . . . . Largest Group 3 | . . . . 3 3 . . . . . Highest-Rated Group 40 | . . . . 40 40 . . . . . Highest-Rated Ally 16 | . . . . 16 16 . . . . . Total Orders . | . . . . . . . . . . . Ally Attacks 26 | . . . . . 26 . . . . . Total Damage 306 | . . . . . 306 . . . . . Kills 7 | . . . . . 7 . . . . . Allies Corrupted . | . . . . . . . . . . . Allies Melted . | . . . . . . . . . . . Intel | -11 -10 -10 -10 -9 -8 -7 -7 -7 -7 -6 ------- Run | Scr Mat Min Exi Min Mat Fac Low Low Dat Pro Robot Analysis Total 116 | . 1 . . . . . . . 115 . Derelict Logs Recovered 3 | . . 1 . 1 . . 1 . . . Drone Launches . | . . . . . . . . . . . Drone Recoveries . | . . . . . . . . . . . Exploration | -11 -10 -10 -10 -9 -8 -7 -7 -7 -7 -6 ------------- Run | Scr Mat Min Exi Min Mat Fac Low Low Dat Pro Turns Passed 4600 | 41 157 165 506 350 633 863 1146 481 123 135 Spaces Moved 2579 | 61 149 88 264 131 208 422 564 324 91 277 Core 354 | 61 103 . . . 72 23 . . 19 76 Treads 1166 | . 46 88 264 131 133 1 446 57 . . Legs 3 | . . . . . 3 . . . . . Wheels 855 | . . . . . . 398 118 267 72 . Hover . | . . . . . . . . . . . Flight 201 | . . . . . . . . . . 201 Fastest Speed 37 | 50 50 160 160 200 50 50 150 120 50 37 Average Speed 147 | 50 83 160 188 225 191 144 186 134 105 40 Slowest Speed 600 | 50 160 160 200 240 600 160 200 200 130 50 Overloaded Moves . | . . . . . . . . . . . Propulsion Burnouts . | . . . . . . . . . . . Robots Hopped 1 | . . . . . . . . . . 1 Cave-ins Triggered . | . . . . . . . . . . . Exploration Rate (%) 37 | 3 32 15 59 27 16 15 79 59 78 26 Regions Visited 10 Branch Regions 7 Pre-discovered Areas 26 | . . . 1 . . . . . 25 . Known Exits Taken 3 | . 1 . . . 1 1 . . . . Unknown Exits Taken 7 | 1 . 1 1 1 . . 1 1 1 . Scrap Searched 7 | . . . . . . . 3 1 . 3 Spaces Dug 36 | . . . . . . 14 22 . . . Terrain Destroyed 221 | . . . . . . 43 125 38 15 . Melee . | . . . . . . . . . . . Projectile 7 | . . . . . . 7 . . . . AOE 214 | . . . . . . 36 125 38 15 . Terrain Rammed . | . . . . . . . . . . . Walls Destroyed . | . . . . . . . . . . . Machines Disabled . | . . . . . . . . . . . Actions | -11 -10 -10 -10 -9 -8 -7 -7 -7 -7 -6 --------- Run | Scr Mat Min Exi Min Mat Fac Low Low Dat Pro Total 3023 | 71 173 97 273 157 333 551 608 348 116 296 Wait 47 | . 4 1 . . 17 13 1 . 1 10 Move 2567 | 60 148 87 263 130 207 421 563 323 90 275 Hop 1 | . . . . . . . . . . 1 Pick Up 70 | 7 6 . 8 3 7 25 8 5 1 . Fast Attach 30 | 1 . . 1 1 5 12 3 2 1 4 Attach 49 | 2 5 . . 1 12 15 4 2 6 2 Detach 4 | . 2 . . . . . . . . 2 Swap 10 | . . . . . . 1 4 2 3 . Drop 36 | 1 2 . 1 1 11 5 1 2 11 1 Fire 163 | . 6 7 . 21 32 59 24 12 1 1 Melee 40 | . . . . . 39 . . . 1 . Ram 3 | . . . . . 2 . . . 1 . Kick . | . . . . . . . . . . . Crush 3 | . . 2 . . 1 . . . . . Escape Stasis . | . . . . . . . . . . . Rewire . | . . . . . . . . . . . Trap . | . . . . . . . . . . . Miscellaneous . | . . . . . . . . . . . Route ------- -11/Scrapyard -10/Materials (discovered 2 exits: *Min x2) -10/Mines (discovered 2 exits: [*Mat] / *Exi) -10/Exiles -9/Mines -8/Materials (discovered 2 exits: *Fac x2) -7/Factory (discovered 2 exits: *Low x2) -7/Lower Caves -7/Lower Caves -7/Data Miner -6/Proximity Caves History --------- Turn | Location | Event 2 | -11/Scrapyard | Discovered new exit (range 16) 42 | -11/Scrapyard | Entered Materials 47 | -10/Materials | Central database locked down 47 | -10/Materials | Identified exit to Mines 199 | -10/Materials | Entered Mines 225 | -10/Mines | Learned 8 Materials zone layouts 227 | -10/Mines | Discovered new exit (range 9) 317 | -10/Mines | Build established: Mutant 356 | -10/Mines | Deemed a non-threat by the Exiles lab entrance 357 | -10/Mines | Discovered new exit (range 5) 364 | -10/Mines | Entered Exiles 403 | -10/Exiles | Met 8R-AWN 430 | -10/Exiles | Met EX-HEX 549 | -10/Exiles | Met EX-DEC 716 | -10/Exiles | Learned location of Zion (-6) 752 | -10/Exiles | Met EX-BIN 772 | -10/Exiles | Build established: Hauler-Mutant 842 | -10/Exiles | Discovered new exit (range 14) 870 | -10/Exiles | Entered Mines 1102 | -9/Mines | Discovered new exit (range 7) 1135 | -9/Mines | A weapon hastily lodged in a ceiling crevice suddenly fell to the ground 1164 | -9/Mines | Learned Materials stockpile data 1215 | -9/Mines | Assisted by bots powering up and referring to "LRC-V3" 1220 | -9/Mines | Entered Materials 1220 | -8/Materials | Accompanied by 3 allies 1220 | -8/Materials | Evolved 4 slots: Utility x3, Weapon x1 1221 | -8/Materials | Identified exit to Factory 1640 | -8/Materials | Lost 5 parts (2n1u2w) 1703 | -8/Materials | Core integrity fell below 50% 1832 | -8/Materials | Core integrity fell below 20% 1846 | -8/Materials | Discovered exit to Factory (range 16) 1853 | -8/Materials | Entered Factory 1853 | -7/Factory | Evolved 2 slots: Utility x2 1860 | -7/Factory | Lost 4 parts (2n2w) 2149 | -7/Factory | Identified exit to Lower Caves 2413 | -7/Factory | Lost 4 parts (1n1u2w) 2716 | -7/Factory | Entered Lower Caves 2885 | -7/Lower Caves | Learned Factory security intel 2898 | -7/Lower Caves | Attracted the attention of an 0b10 outpost 2966 | -7/Lower Caves | Lost 4 parts (2n2u) 3207 | -7/Lower Caves | Build established: Scavenger-Mutant 3242 | -7/Lower Caves | Attracted the attention of an 0b10 checkpoint 3536 | -7/Lower Caves | Build established: Hauler-Mutant 3551 | -7/Lower Caves | Discovered new exit (range 8) 3862 | -7/Lower Caves | Entered another Lower Caves area 3981 | -7/Lower Caves | Attracted the attention of an 0b10 outpost 4035 | -7/Lower Caves | Destroyed 12 combat bots 4042 | -7/Lower Caves | Lost 4 parts (1n2u1w) 4267 | -7/Lower Caves | Discovered new exit (range 9) 4343 | -7/Lower Caves | Entered Data Miner 4343 | -7/Data Miner | Discovered new exit (range 6) 4366 | -7/Data Miner | Met Data Miner 4391 | -7/Data Miner | Learned location of Section 7 (-2) 4391 | -7/Data Miner | Acquired the access code to Warlord's prototype stash 4411 | -7/Data Miner | Received God Mode back door access code from Data Miner 4426 | -7/Data Miner | Interfaced with the Data Conduit 4445 | -7/Data Miner | Core integrity fell below 50% 4459 | -7/Data Miner | Core integrity fell below 20% 4466 | -7/Data Miner | Entered Proximity Caves 4493 | -6/Proximity Caves | Lost 13 parts (1p3n3u6w) 4504 | -6/Proximity Caves | Spotted B-75 Beast 4594 | -6/Proximity Caves | Lost 3 parts (1p2n) 4601 | -6/Proximity Caves | Destroyed by B-75 Beast with Heavy Plasma Cannon Last Messages --------------- 04476_ Acquired Spk. Medium Treads. 04479_ Searching scrap... 04479_ Found Nuclear Pulse Thruster. 04479_ Found Hvy. Battle Rifle. 04479_ Found 22 Matter. 04480_ Acquired Nuclear Pulse Thruster. 04481_ Dropped Coil Gun. 04482_ Acquired 22 matter. 04489_ Slug penetrates YH-WSN(s). 04489_ YH-WSN(s) destroyed. 04491_ Acquired 25 matter. 04492_ Acquired Cesium-ion Thruster. 04494_ WYLH3E=S, HU1H